Workbook

Sheet Sheet1
A4: INSTRUCTIONS: Use this form when a single information collection document involves multiple reporting and recordkeeping requirements. The totals of the figures in cols. should be entered in item 13 of OMB-83-I: cols. (D) &/or (I) = 13a (respondent is only counted once); cols. F & I = 13b; cols. H & K = 13c. (F)Total/(D)Total = (E)Average (H)Total/(F)Total = (G)Average (K)Total/(I)Total = (J)Average NOTE: The columns will calculate automatically. If Col. E's response is something other than annually, i.e., 1/6 years, list as "1/6" & decimal will display. | I4: TITLE OF INFORMATION COLLECTION DOCUMENT | N4: OMB NO.
I6: Representations Regarding Felony Conviction and Tax Delinquent status for Corporate Applicants and Awardees in Non-procurement Programs | N6: 0505-0025
N9: DATE PREPARED
N11: 2016-02-25
A13: IDENTIFICATION OF REPORTING OR RECORDKEEPING REQUIREMENT | H13: ANNUAL BURDEN
H15: REPORTS | M15: RECORDS | P15: RESPONDENT COST
O17: TOTAL
G18: FORMS NO (S) | H18: NO. OF | I18: NO OF | J18: TOTAL ANNUAL | K18: HOURS | L18: TOTAL | M18: NO. OF | N18: ANNUAL | O18: RECORD- | P18: COST | Q18: TOTAL
A19: SECTION OF | B19: DESCRIPTION | G19: (If "none" | H19: RESPONDENTS | I19: RESPONSES | J19: RESPONSES | K19: PER | L19: HOURS | M19: RECORD- | N19: HOURS PER | O19: KEEPING HOURS | P19: PER | Q19: COST
A20: REGS. | G20: so state) | I20: PER | J20: (Col. D x E) | K20: RESPONSE | L20: (Col. F x G) | M20: KEEPERS | N20: RECORD- | O20: (Col. I x J) | P20: HOUR | Q20: (Col. H x L)
I21: RESPONDENT | N21: KEEPER
A22: (A) | B22: (B) | G22: (C) | H22: (D) | I22: (E) | J22: (F) | K22: (G) | L22: (H) | M22: (I) | N22: (J) | O22: (K) | P22: (L) | Q22: (M)
A23: P. L. 112-74, Sec. 433 and 434 | B23: Representations Regarding Felony Conviction & Tax Delinquent Status for Corporate Applicants | G23: AD-3030-FS | H23: 110,000 | I23: 1.75 | J23: =SUM(H23*I23) -> 192,500.00 | K23: 0.2500 | L23: =SUM(J23*K23) -> 48,125.00 | O23: =SUM(M23*N23) -> 0.00 | Q23: =SUM(L23*P23) -> $0.00
B24: Assurance Regarding Felony Conviction or Tax Delinquent Status for Corporate Applicants -- Awardees | G24: AD3031-FS | H24: 81,400 | I24: 1.75 | J24: 142,450.00 | K24: 0.2500 | L24: 35,612.50 | O24: 0.00 | Q24: =SUM(L24*P24) -> $0.00
A25: P.L. 112-55 Sec. 738 and 739 | B25: Representations Regarding Felony Conviction & Tax Delinquent Status for Corporate Applicants | J25: 0.00 | L25: 0.00 | O25: 0.00 | Q25: $0.00
B26: -- NIFA | G26: AD-3030 | H26: 6,300 | I26: 1.75 | J26: 11,025.00 | K26: 0.2500 | L26: 2,756.25 | O26: 0.00 | Q26: $0.00
B27: -- FNS | G27: AD-3030 | H27: 720 | I27: 1.75 | J27: 1,260.00 | K27: 0.2500 | L27: 315.00 | O27: 0.00 | Q27: $0.00
B28: -- APHIS | G28: AD-3030 | H28: 3,066 | I28: 1.75 | J28: =SUM(H28*I28) -> 5,365.50 | K28: 0.2500 | L28: =SUM(J28*K28) -> 1,341.38 | O28: =SUM(M28*N28) -> 0.00 | Q28: =SUM(L28*P28) -> $0.00
B29: -- AMS | G29: AD-3030 | H29: 1,631 | I29: 1.75 | J29: 2,854.25 | K29: 0.2500 | L29: 713.56 | O29: 0.00 | Q29: $0.00
B30: -- RBS | G30: AD-3030 | H30: 5,864 | I30: 1.75 | J30: 10,262.00 | K30: 0.2500 | L30: 2,565.50 | O30: 0.00 | Q30: $0.00
B31: -- RHS | G31: AD-3030 | H31: 86,206 | I31: 1.75 | J31: 150,860.50 | K31: 0.2500 | L31: 37,715.13 | O31: 0.00 | Q31: $0.00
B32: SUBTOTAL | J32: =SUM(J23:J31) -> 516,577.25 | L32: =SUM(L23:L31) -> 129,144.31 | M32: =SUM(M23:M31) -> 0.00 | O32: =SUM(O23:O31) -> 0.00 | Q32: =SUM(Q23:Q31) -> $0.00
B33: TOTAL OF ALL PAGES | J33: =SUM(J32+J70+J98+J127+J156+J185+J214+J243+J272+J301+J330+J359+J388+J417+J446+J475+J504+J533+J562+J591+J620+J649+J678+J707+J736+J765+J794+J823+J852+J881+J910+J939+J968+J997+J1026+J1055+J1084+J1113+J1142+J1171+J1200+J1229+J1258+J1287+J1316+J1345+J1374+J1403+J1432+J1461+J1490+J1519+J1548+J1577+J1606+J1635+J1664+J1693+J1722+J1751) -> 2,256,096.50 | L33: =SUM(L32+L70+L98+L127+L156+L185+L214+L243+L272+L301+L330+L359+L388+L417+L446+L475+L504+L533+L562+L591+L620+L649+L678+L707+L736+L765+L794+L823+L852+L881+L910+L939+L968+L997+L1026+L1055+L1084+L1113+L1142+L1171+L1200+L1229+L1258+L1287+L1316+L1345+L1374+L1403+L1432+L1461+L1490+L1519+L1548+L1577+L1606+L1635+L1664+L1693+L1722+L1751) -> 564,024.13 | M33: =SUM(M32+M70+M98+M127+M156+M185+M214+M243+M272+M301+M330+M359+M388+M417+M446+M475+M504+M533+M562+M591+M620+M649+M678+M707+M736+M765+M794+M823+M852+M881+M910+M939+M968+M997+M1026+M1055+M1084+M1113+M1142+M1171+M1200+M1229+M1258+M1287+M1316+M1345+M1374+M1403+M1432+M1461+M1490+M1519+M1548+M1577+M1606+M1635+M1664+M1693+M1722+M1751) -> 0.00 | O33: =SUM(O32+O70+O98+O127+O156+O185+O214+O243+O272+O301+O330+O359+O388+O417+O446+O475+O504+O533+O562+O591+O620+O649+O678+O707+O736+O765+O794+O823+O852+O881+O910+O939+O968+O997+O1026+O1055+O1084+O1113+O1142+O1171+O1200+O1229+O1258+O1287+O1316+O1345+O1374+O1403+O1432+O1461+O1490+O1519+O1548+O1577+O1606+O1635+O1664+O1693+O1722+O1751) -> 0.00 | Q33: =SUM(Q32+Q70+Q98+Q127+Q156+Q185+Q214+Q243+Q272+Q301+Q330+Q359+Q388+Q417+Q446+Q475+Q504+Q533+Q562+Q591+Q620+Q649+Q678+Q707+Q736+Q765+Q794+Q823+Q852+Q881+Q910+Q939+Q968+Q997+Q1026+Q1055+Q1084+Q1113+Q1142+Q1171+Q1200+Q1229+Q1258+Q1287+Q1316+Q1345+Q1374+Q1403+Q1432+Q1461+Q1490+Q1519+Q1548+Q1577+Q1606+Q1635+Q1664+Q1693+Q1722+Q1751) -> $0.00
A34: TOTAL - COLUMNS "F" AND "I" = OMB 831, 13 b; COLUMNS "H" AND "K" = OMB 831, 13c | J34: =SUM(J33+M33) -> 2,256,096.50 | L34: =SUM(L33+O33) -> 564,024.13
A38: INSTRUCTIONS: Use this form when a single information collection document involves multiple reporting and recordkeeping requirements. The totals of the figures in cols. should be entered in item 13 of OMB-83-1: cols. (D) &/or (I) = 13a (respondent is only counted once); cols. F & I = 13b; cols. H & K = 13c. (F)Total/(D)Total = (E)Average (H)Total/(F)Total = (G)Average (K)Total/(I)Total = (J)Average NOTE: The columns will calculate automatically. If Col. E's response is something other than annually, i.e., 1/6 years, list as "1/6" & decimal will display. | I38: TITLE OF INFORMATION COLLECTION DOCUMENT | N38: OMB NO.
I40: Representations Regarding Felony Conviction and Tax Delinquent status for Corporate Applicants and Awardees in Non-procurement Programs | N40: 0505-0025
N43: DATE PREPARED
N45: 2012-11-30
A47: IDENTIFICATION OF REPORTING OR RECORDKEEPING REQUIREMENT | H47: ANNUAL BURDEN
H49: REPORTS | M49: RECORDS | P49: RESPONDENT COST
O51: TOTAL
G52: FORMS NO (S) | H52: NO. OF | I52: NO OF | J52: TOTAL ANNUAL | K52: HOURS | L52: TOTAL | M52: NO. OF | N52: ANNUAL | O52: RECORD- | P52: COST | Q52: TOTAL
A53: SECTION OF | B53: DESCRIPTION | G53: (If "none" | H53: RESPONDENTS | I53: RESPONSES | J53: RESPONSES | K53: PER | L53: HOURS | M53: RECORD- | N53: HOURS PER | O53: KEEPING HOURS | P53: PER | Q53: COST
A54: REGS. | G54: so state) | I54: PER | J54: (Col. D x E) | K54: RESPONSE | L54: (Col. F x G) | M54: KEEPERS | N54: RECORD- | O54: (Col. I x J) | P54: HOUR | Q54: (Col. H x L)
I55: RESPONDENT | N55: KEEPER
A56: (A) | B56: (B) | G56: (C) | H56: (D) | I56: (E) | J56: (F) | K56: (G) | L56: (H) | M56: (I) | N56: (J) | O56: (K) | P56: (L) | Q56: (M)
B57: Representations Regarding Felony Conviction & Tax Delinquent Status for Corporate Applicants -- continued | J57: =SUM(H57*I57) -> 0.00 | L57: =SUM(J57*K57) -> 0.00 | O57: =SUM(M57*N57) -> 0.00 | Q57: =SUM(L57*P57) -> $0.00
B58: -- FAS | G58: AD-3030 | H58: 136,080 | I58: 1.75 | J58: =SUM(H58*I58) -> 238,140.00 | K58: 0.2500 | L58: =SUM(J58*K58) -> 59,535.00 | O58: =SUM(M58*N58) -> 0.00 | Q58: =SUM(L58*P58) -> $0.00
B59: -- NRCS | G59: AD-3030 | H59: 30,000 | I59: 1.75 | J59: 52,500.00 | K59: 0.2500 | L59: 13,125.00 | O59: 0.00 | Q59: $0.00
B60: -- FSA | G60: AD-3030 | H60: 75,580 | I60: 1.75 | J60: 132,265.00 | K60: 0.2500 | L60: 33,066.25 | Q60: $0.00
B61: -- OCFO | G61: AD-3030 | H61: 286,097 | I61: 1.75 | J61: 500,669.75 | K61: 0.2500 | L61: 125,167.44 | O61: =SUM(M61*N61) -> 0.00 | Q61: $0.00
A62: P.L. 112-55 Sec. 738 and 739 | B62: Assurance Regarding Felony Conviction or Tax Delinquent Status for Corporate Applicants -- Awardees | J62: =SUM(H62*I62) -> 0.00 | L62: =SUM(J62*K62) -> 0.00 | O62: =SUM(M62*N62) -> 0.00 | Q62: =SUM(L62*P62) -> $0.00
B63: -- NIFA | G63: AD-3031 | H63: 4,500 | I63: 1.75 | J63: 7,875.00 | K63: 0.2500 | L63: 1,968.75 | Q63: $0.00
B64: -- FNS | G64: AD-3031 | H64: 530 | I64: 1.75 | J64: 927.50 | K64: 0.2500 | L64: 231.88 | O64: =SUM(M64*N64) -> 0.00 | Q64: $0.00
B65: -- APHIS | G65: AD-3031 | H65: 2,168 | I65: 1.75 | J65: 3,794.00 | K65: 0.2500 | L65: 948.50 | O65: 0.00 | Q65: $0.00
B66: -- AMS | G66: AD-3031 | H66: 281 | I66: 1.75 | J66: 491.75 | K66: 0.2500 | L66: 122.94 | O66: 0.00 | Q66: $0.00
B67: -- RBS | G67: AD-3031 | H67: 4,343 | I67: 1.75 | J67: 7,600.25 | K67: 0.2500 | L67: 1,900.06 | O67: 0.00 | Q67: $0.00
B68: -- RHS | G68: AD-3031 | H68: 63,792 | I68: 1.75 | J68: 111,636.00 | K68: 0.2500 | L68: 27,909.00 | O68: 0.00 | Q68: $0.00
B69: -- FAS | G69: AD-3031 | H69: 100,699 | I69: 1.75 | J69: 176,223.25 | K69: 0.2500 | L69: 44,055.81 | O69: 0.00 | Q69: $0.00
B70: SUBTOTAL | J70: =SUM(J57:J69) -> 1,232,122.50 | L70: =SUM(L57:L69) -> 308,030.63 | M70: =SUM(M57:M69) -> 0 | O70: =SUM(O57:O69) -> 0.00 | Q70: =SUM(Q57:Q69) -> $0.00
A74: INSTRUCTIONS: Use this form when a single information collection document involves multiple reporting and recordkeeping requirements. The totals of the figures in cols. should be entered in item 13 of OMB-83-1: cols. (D) &/or (I) = 13a (respondent is only counted once); cols. F & I = 13b; cols. H & K = 13c. (F)Total/(D)Total = (E)Average (H)Total/(F)Total = (G)Average (K)Total/(I)Total = (J)Average NOTE: The columns will calculate automatically. If Col. E's response is something other than annually, i.e., 1/6 years, list as "1/6" & decimal will display. | I74: TITLE OF INFORMATION COLLECTION DOCUMENT | N74: OMB NO.
I76: Representations Regarding Felony Conviction and Tax Delinquent status for Corporate Applicants and Awardees in Non-procurement Programs | N76: 0505-0025
N79: DATE PREPARED
N81: 2012-11-30
A83: IDENTIFICATION OF REPORTING OR RECORDKEEPING REQUIREMENT | H83: ANNUAL BURDEN
H85: REPORTS | M85: RECORDS | P85: RESPONDENT COST
O87: TOTAL
G88: FORMS NO (S) | H88: NO. OF | I88: NO OF | J88: TOTAL ANNUAL | K88: HOURS | L88: TOTAL | M88: NO. OF | N88: ANNUAL | O88: RECORD- | P88: COST | Q88: TOTAL
A89: SECTION OF | B89: DESCRIPTION | G89: (If "none" | H89: RESPONDENTS | I89: RESPONSES | J89: RESPONSES | K89: PER | L89: HOURS | M89: RECORD- | N89: HOURS PER | O89: KEEPING HOURS | P89: PER | Q89: COST
A90: REGS. | G90: so state) | I90: PER | J90: (Col. D x E) | K90: RESPONSE | L90: (Col. F x G) | M90: KEEPERS | N90: RECORD- | O90: (Col. I x J) | P90: HOUR | Q90: (Col. H x L)
I91: RESPONDENT | N91: KEEPER
A92: (A) | B92: (B) | G92: (C) | H92: (D) | I92: (E) | J92: (F) | K92: (G) | L92: (H) | M92: (I) | N92: (J) | O92: (K) | P92: (L) | Q92: (M)
B93: Assurance Regarding Felony Conviction or Tax Delinquent Status for Corporate Applicants -- Awardees -- continued | J93: =SUM(H93*I93) -> 0.00 | L93: =SUM(J93*K93) -> 0.00 | O93: =SUM(M93*N93) -> 0.00 | Q93: =SUM(L93*P93) -> $0.00
B94: -- NRCS | G94: AD-3031 | H94: 22,200 | I94: 1.75 | J94: 38,850.00 | K94: 0.2500 | L94: 9,712.50 | O94: 0.00 | Q94: =SUM(L94*P94) -> $0.00
B95: -- FSA | G95: AD-3031 | H95: 55,929 | I95: 1.75 | J95: 97,875.75 | K95: 0.2500 | L95: 24,468.94 | O95: 0.00 | Q95: $0.00
B96: -- RMA | G96: AD-3031 | H96: 100 | I96: 1.75 | J96: 175.00 | K96: 0.2500 | L96: 43.75
B97: -- OCFO | G97: AD-3031 | H97: 211,712 | I97: 1.75 | J97: 370,496.00 | K97: 0.2500 | L97: 92,624.00 | O97: 0.00 | Q97: $0.00
B98: SUBTOTAL | J98: =SUM(J93:J97) -> 507,396.75 | L98: =SUM(L93:L97) -> 126,849.19 | M98: =SUM(M93:M97) -> 0 | O98: =SUM(O93:O97) -> 0.00 | Q98: =SUM(Q93:Q97) -> $0.00
A102: INSTRUCTIONS: Use this form when a single information collection document involves multiple reporting and recordkeeping requirements. The totals of the figures in cols. should be entered in item 13 of OMB-83-1: cols. (D) &/or (I) = 13a (respondent is only counted once); cols. F & I = 13b; cols. H & K = 13c. (F)Total/(D)Total = (E)Average (H)Total/(F)Total = (G)Average (K)Total/(I)Total = (J)Average NOTE: The columns will calculate automatically. If Col. E's response is something other than annually, i.e., 1/6 years, list as "1/6" & decimal will display. | I102: TITLE OF INFORMATION COLLECTION DOCUMENT | N102: OMB NO.
N104: 0563-New
N107: DATE PREPARED
A111: IDENTIFICATION OF REPORTING OR RECORDKEEPING REQUIREMENT | H111: ANNUAL BURDEN
H113: REPORTS | M113: RECORDS | P113: RESPONDENT COST
O115: TOTAL
G116: FORMS NO (S) | H116: NO. OF | I116: NO OF | J116: TOTAL ANNUAL | K116: HOURS | L116: TOTAL | M116: NO. OF | N116: ANNUAL | O116: RECORD- | P116: COST | Q116: TOTAL
A117: SECTION OF | B117: DESCRIPTION | G117: (If "none" | H117: RESPONDENTS | I117: RESPONSES | J117: RESPONSES | K117: PER | L117: HOURS | M117: RECORD- | N117: HOURS PER | O117: KEEPING HOURS | P117: PER | Q117: COST
A118: REGS. | G118: so state) | I118: PER | J118: (Col. D x E) | K118: RESPONSE | L118: (Col. F x G) | M118: KEEPERS | N118: RECORD- | O118: (Col. I x J) | P118: HOUR | Q118: (Col. H x L)
I119: RESPONDENT | N119: KEEPER
A120: (A) | B120: (B) | G120: (C) | H120: (D) | I120: (E) | J120: (F) | K120: (G) | L120: (H) | M120: (I) | N120: (J) | O120: (K) | P120: (L) | Q120: (M)
J121: =SUM(H121*I121) -> 0.00 | L121: =SUM(J121*K121) -> 0.00 | O121: =SUM(M121*N121) -> 0.00 | Q121: =SUM(L121*P121) -> $0.00
J122: 0.00 | L122: 0.00 | O122: 0.00 | Q122: =SUM(L122*P122) -> $0.00
J123: 0.00 | L123: 0.00 | O123: 0.00 | Q123: $0.00
J124: 0.00 | L124: 0.00 | O124: 0.00 | Q124: $0.00
J125: 0.00 | L125: 0.00 | O125: 0.00 | Q125: $0.00
J126: 0.00 | L126: 0.00 | O126: 0.00 | Q126: $0.00
B127: SUBTOTAL | J127: =SUM(J121:J126) -> 0.00 | L127: =SUM(L121:L126) -> 0.00 | M127: =SUM(M121:M126) -> 0 | O127: =SUM(O121:O126) -> 0.00 | Q127: =SUM(Q121:Q126) -> $0.00
A131: INSTRUCTIONS: Use this form when a single information collection document involves multiple reporting and recordkeeping requirements. The totals of the figures in cols. should be entered in item 13 of OMB-83-1: cols. (D) &/or (I) = 13a (respondent is only counted once); cols. F & I = 13b; cols. H & K = 13c. (F)Total/(D)Total = (E)Average (H)Total/(F)Total = (G)Average (K)Total/(I)Total = (J)Average NOTE: The columns will calculate automatically. If Col. E's response is something other than annually, i.e., 1/6 years, list as "1/6" & decimal will display. | I131: TITLE OF INFORMATION COLLECTION DOCUMENT | N131: OMB NO.
N133: 0563-New
N136: DATE PREPARED
A140: IDENTIFICATION OF REPORTING OR RECORDKEEPING REQUIREMENT | H140: ANNUAL BURDEN
H142: REPORTS | M142: RECORDS
O144: TOTAL
G145: FORMS NO (S) | H145: NO. OF | I145: NO OF | J145: TOTAL ANNUAL | K145: HOURS | L145: TOTAL | M145: NO. OF | N145: ANNUAL | O145: RECORD-
A146: SECTION OF | B146: DESCRIPTION | G146: (If "none" | H146: RESPONDENTS | I146: RESPONSES | J146: RESPONSES | K146: PER | L146: HOURS | M146: RECORD- | N146: HOURS PER | O146: KEEPING HOURS
A147: REGS. | G147: so state) | I147: PER | J147: (Col. D x E) | K147: RESPONSE | L147: (Col. F x G) | M147: KEEPERS | N147: RECORD- | O147: (Col. I x J)
I148: RESPONDENT | N148: KEEPER
A149: (A) | B149: (B) | G149: (C) | H149: (D) | I149: (E) | J149: (F) | K149: (G) | L149: (H) | M149: (I) | N149: (J) | O149: (K)
J150: =SUM(H150*I150) -> 0.00 | L150: =SUM(J150*K150) -> 0.00 | O150: =SUM(M150*N150) -> 0.00
J151: 0.00 | L151: 0.00 | O151: 0.00
J152: 0.00 | L152: 0.00 | O152: 0.00
J153: 0.00 | L153: 0.00 | O153: 0.00
J154: 0.00 | L154: 0.00 | O154: 0.00
J155: 0.00 | L155: 0.00 | O155: 0.00
B156: SUBTOTAL | J156: =SUM(J150:J155) -> 0.00 | L156: =SUM(L150:L155) -> 0.00 | M156: =SUM(M150:M155) -> 0 | O156: =SUM(O150:O155) -> 0.00
A160: INSTRUCTIONS: Use this form when a single information collection document involves multiple reporting and recordkeeping requirements. The totals of the figures in cols. should be entered in item 13 of OMB-83-1: cols. (D) &/or (I) = 13a (respondent is only counted once); cols. F & I = 13b; cols. H & K = 13c. (F)Total/(D)Total = (E)Average (H)Total/(F)Total = (G)Average (K)Total/(I)Total = (J)Average NOTE: The columns will calculate automatically. If Col. E's response is something other than annually, i.e., 1/6 years, list as "1/6" & decimal will display. | I160: TITLE OF INFORMATION COLLECTION DOCUMENT | N160: OMB NO.
N162: 0563-New
N165: DATE PREPARED
A169: IDENTIFICATION OF REPORTING OR RECORDKEEPING REQUIREMENT | H169: ANNUAL BURDEN
H171: REPORTS | M171: RECORDS
O173: TOTAL
G174: FORMS NO (S) | H174: NO. OF | I174: NO OF | J174: TOTAL ANNUAL | K174: HOURS | L174: TOTAL | M174: NO. OF | N174: ANNUAL | O174: RECORD-
A175: SECTION OF | B175: DESCRIPTION | G175: (If "none" | H175: RESPONDENTS | I175: RESPONSES | J175: RESPONSES | K175: PER | L175: HOURS | M175: RECORD- | N175: HOURS PER | O175: KEEPING HOURS
A176: REGS. | G176: so state) | I176: PER | J176: (Col. D x E) | K176: RESPONSE | L176: (Col. F x G) | M176: KEEPERS | N176: RECORD- | O176: (Col. I x J)
I177: RESPONDENT | N177: KEEPER
A178: (A) | B178: (B) | G178: (C) | H178: (D) | I178: (E) | J178: (F) | K178: (G) | L178: (H) | M178: (I) | N178: (J) | O178: (K)
J179: =SUM(H179*I179) -> 0.00 | L179: =SUM(J179*K179) -> 0.00 | O179: =SUM(M179*N179) -> 0.00
J180: 0.00 | L180: 0.00 | O180: 0.00
J181: 0.00 | L181: 0.00 | O181: 0.00
J182: 0.00 | L182: 0.00 | O182: 0.00
J183: 0.00 | L183: 0.00 | O183: 0.00
J184: 0.00 | L184: 0.00 | O184: 0.00
B185: SUBTOTAL | J185: =SUM(J179:J184) -> 0.00 | L185: =SUM(L179:L184) -> 0.00 | M185: =SUM(M179:M184) -> 0 | O185: =SUM(O179:O184) -> 0.00
A189: INSTRUCTIONS: Use this form when a single information collection document involves multiple reporting and recordkeeping requirements. The totals of the figures in cols. should be entered in item 13 of OMB-83-1: cols. (D) &/or (I) = 13a (respondent is only counted once); cols. F & I = 13b; cols. H & K = 13c. (F)Total/(D)Total = (E)Average (H)Total/(F)Total = (G)Average (K)Total/(I)Total = (J)Average NOTE: The columns will calculate automatically. If Col. E's response is something other than annually, i.e., 1/6 years, list as "1/6" & decimal will display. | I189: TITLE OF INFORMATION COLLECTION DOCUMENT | N189: OMB NO.
N191: 0581-
N194: DATE PREPARED
A198: IDENTIFICATION OF REPORTING OR RECORDKEEPING REQUIREMENT | H198: ANNUAL BURDEN
H200: REPORTS | M200: RECORDS
O202: TOTAL
G203: FORMS NO (S) | H203: NO. OF | I203: NO OF | J203: TOTAL ANNUAL | K203: HOURS | L203: TOTAL | M203: NO. OF | N203: ANNUAL | O203: RECORD-
A204: SECTION OF | B204: DESCRIPTION | G204: (If "none" | H204: RESPONDENTS | I204: RESPONSES | J204: RESPONSES | K204: PER | L204: HOURS | M204: RECORD- | N204: HOURS PER | O204: KEEPING HOURS
A205: REGS. | G205: so state) | I205: PER | J205: (Col. D x E) | K205: RESPONSE | L205: (Col. F x G) | M205: KEEPERS | N205: RECORD- | O205: (Col. I x J)
I206: RESPONDENT | N206: KEEPER
A207: (A) | B207: (B) | G207: (C) | H207: (D) | I207: (E) | J207: (F) | K207: (G) | L207: (H) | M207: (I) | N207: (J) | O207: (K)
J208: =SUM(H208*I208) -> 0.00 | L208: =SUM(J208*K208) -> 0.00 | O208: =SUM(M208*N208) -> 0.00
J209: 0.00 | L209: 0.00 | O209: 0.00
J210: 0.00 | L210: 0.00 | O210: 0.00
J211: 0.00 | L211: 0.00 | O211: 0.00
J212: 0.00 | L212: 0.00 | O212: 0.00
J213: 0.00 | L213: 0.00 | O213: 0.00
B214: SUBTOTAL | J214: =SUM(J208:J213) -> 0.00 | L214: =SUM(L208:L213) -> 0.00 | M214: =SUM(M208:M213) -> 0 | O214: =SUM(O208:O213) -> 0.00
A218: INSTRUCTIONS: Use this form when a single information collection document involves multiple reporting and recordkeeping requirements. The totals of the figures in cols. should be entered in item 13 of OMB-83-1: cols. (D) &/or (I) = 13a (respondent is only counted once); cols. F & I = 13b; cols. H & K = 13c. (F)Total/(D)Total = (E)Average (H)Total/(F)Total = (G)Average (K)Total/(I)Total = (J)Average NOTE: The columns will calculate automatically. If Col. E's response is something other than annually, i.e., 1/6 years, list as "1/6" & decimal will display. | I218: TITLE OF INFORMATION COLLECTION DOCUMENT | N218: OMB NO.
N220: 0581-
N223: DATE PREPARED
A227: IDENTIFICATION OF REPORTING OR RECORDKEEPING REQUIREMENT | H227: ANNUAL BURDEN
H229: REPORTS | M229: RECORDS
O231: TOTAL
G232: FORMS NO (S) | H232: NO. OF | I232: NO OF | J232: TOTAL ANNUAL | K232: HOURS | L232: TOTAL | M232: NO. OF | N232: ANNUAL | O232: RECORD-
A233: SECTION OF | B233: DESCRIPTION | G233: (If "none" | H233: RESPONDENTS | I233: RESPONSES | J233: RESPONSES | K233: PER | L233: HOURS | M233: RECORD- | N233: HOURS PER | O233: KEEPING HOURS
A234: REGS. | G234: so state) | I234: PER | J234: (Col. D x E) | K234: RESPONSE | L234: (Col. F x G) | M234: KEEPERS | N234: RECORD- | O234: (Col. I x J)
I235: RESPONDENT | N235: KEEPER
A236: (A) | B236: (B) | G236: (C) | H236: (D) | I236: (E) | J236: (F) | K236: (G) | L236: (H) | M236: (I) | N236: (J) | O236: (K)
J237: =SUM(H237*I237) -> 0.00 | L237: =SUM(J237*K237) -> 0.00 | O237: =SUM(M237*N237) -> 0.00
J238: 0.00 | L238: 0.00 | O238: 0.00
J239: 0.00 | L239: 0.00 | O239: 0.00
J240: 0.00 | L240: 0.00 | O240: 0.00
J241: 0.00 | L241: 0.00 | O241: 0.00
J242: 0.00 | L242: 0.00 | O242: 0.00
B243: SUBTOTAL | J243: =SUM(J237:J242) -> 0.00 | L243: =SUM(L237:L242) -> 0.00 | M243: =SUM(M237:M242) -> 0 | O243: =SUM(O237:O242) -> 0.00
A247: INSTRUCTIONS: Use this form when a single information collection document involves multiple reporting and recordkeeping requirements. The totals of the figures in cols. should be entered in item 13 of OMB-83-1: cols. (D) &/or (I) = 13a (respondent is only counted once); cols. F & I = 13b; cols. H & K = 13c. (F)Total/(D)Total = (E)Average (H)Total/(F)Total = (G)Average (K)Total/(I)Total = (J)Average NOTE: The columns will calculate automatically. If Col. E's response is something other than annually, i.e., 1/6 years, list as "1/6" & decimal will display. | I247: TITLE OF INFORMATION COLLECTION DOCUMENT | N247: OMB NO.
N249: 0581-
N252: DATE PREPARED
A256: IDENTIFICATION OF REPORTING OR RECORDKEEPING REQUIREMENT | H256: ANNUAL BURDEN
H258: REPORTS | M258: RECORDS
O260: TOTAL
G261: FORMS NO (S) | H261: NO. OF | I261: NO OF | J261: TOTAL ANNUAL | K261: HOURS | L261: TOTAL | M261: NO. OF | N261: ANNUAL | O261: RECORD-
A262: SECTION OF | B262: DESCRIPTION | G262: (If "none" | H262: RESPONDENTS | I262: RESPONSES | J262: RESPONSES | K262: PER | L262: HOURS | M262: RECORD- | N262: HOURS PER | O262: KEEPING HOURS
A263: REGS. | G263: so state) | I263: PER | J263: (Col. D x E) | K263: RESPONSE | L263: (Col. F x G) | M263: KEEPERS | N263: RECORD- | O263: (Col. I x J)
I264: RESPONDENT | N264: KEEPER
A265: (A) | B265: (B) | G265: (C) | H265: (D) | I265: (E) | J265: (F) | K265: (G) | L265: (H) | M265: (I) | N265: (J) | O265: (K)
J266: =SUM(H266*I266) -> 0.00 | L266: =SUM(J266*K266) -> 0.00 | O266: =SUM(M266*N266) -> 0.00
J267: 0.00 | L267: 0.00 | O267: 0.00
J268: 0.00 | L268: 0.00 | O268: 0.00
J269: 0.00 | L269: 0.00 | O269: 0.00
J270: 0.00 | L270: 0.00 | O270: 0.00
J271: 0.00 | L271: 0.00 | O271: 0.00
B272: SUBTOTAL | J272: =SUM(J266:J271) -> 0.00 | L272: =SUM(L266:L271) -> 0.00 | M272: =SUM(M266:M271) -> 0 | O272: =SUM(O266:O271) -> 0.00
A276: INSTRUCTIONS: Use this form when a single information collection document involves multiple reporting and recordkeeping requirements. The totals of the figures in cols. should be entered in item 13 of OMB-83-1: cols. (D) &/or (I) = 13a (respondent is only counted once); cols. F & I = 13b; cols. H & K = 13c. (F)Total/(D)Total = (E)Average (H)Total/(F)Total = (G)Average (K)Total/(I)Total = (J)Average NOTE: The columns will calculate automatically. If Col. E's response is something other than annually, i.e., 1/6 years, list as "1/6" & decimal will display. | I276: TITLE OF INFORMATION COLLECTION DOCUMENT | N276: OMB NO.
N278: 0581-
N281: DATE PREPARED
A285: IDENTIFICATION OF REPORTING OR RECORDKEEPING REQUIREMENT | H285: ANNUAL BURDEN
H287: REPORTS | M287: RECORDS
O289: TOTAL
G290: FORMS NO (S) | H290: NO. OF | I290: NO OF | J290: TOTAL ANNUAL | K290: HOURS | L290: TOTAL | M290: NO. OF | N290: ANNUAL | O290: RECORD-
A291: SECTION OF | B291: DESCRIPTION | G291: (If "none" | H291: RESPONDENTS | I291: RESPONSES | J291: RESPONSES | K291: PER | L291: HOURS | M291: RECORD- | N291: HOURS PER | O291: KEEPING HOURS
A292: REGS. | G292: so state) | I292: PER | J292: (Col. D x E) | K292: RESPONSE | L292: (Col. F x G) | M292: KEEPERS | N292: RECORD- | O292: (Col. I x J)
I293: RESPONDENT | N293: KEEPER
A294: (A) | B294: (B) | G294: (C) | H294: (D) | I294: (E) | J294: (F) | K294: (G) | L294: (H) | M294: (I) | N294: (J) | O294: (K)
J295: =SUM(H295*I295) -> 0.00 | L295: =SUM(J295*K295) -> 0.00 | O295: =SUM(M295*N295) -> 0.00
J296: 0.00 | L296: 0.00 | O296: 0.00
J297: 0.00 | L297: 0.00 | O297: 0.00
J298: 0.00 | L298: 0.00 | O298: 0.00
J299: 0.00 | L299: 0.00 | O299: 0.00
J300: 0.00 | L300: 0.00 | O300: 0.00
B301: SUBTOTAL | J301: =SUM(J295:J300) -> 0.00 | L301: =SUM(L295:L300) -> 0.00 | M301: =SUM(M295:M300) -> 0 | O301: =SUM(O295:O300) -> 0.00
A305: INSTRUCTIONS: Use this form when a single information collection document involves multiple reporting and recordkeeping requirements. The totals of the figures in cols. should be entered in item 13 of OMB-83-1: cols. (D) &/or (I) = 13a (respondent is only counted once); cols. F & I = 13b; cols. H & K = 13c. (F)Total/(D)Total = (E)Average (H)Total/(F)Total = (G)Average (K)Total/(I)Total = (J)Average NOTE: The columns will calculate automatically. If Col. E's response is something other than annually, i.e., 1/6 years, list as "1/6" & decimal will display. | I305: TITLE OF INFORMATION COLLECTION DOCUMENT | N305: OMB NO.
N307: 0581-
N310: DATE PREPARED
A314: IDENTIFICATION OF REPORTING OR RECORDKEEPING REQUIREMENT | H314: ANNUAL BURDEN
H316: REPORTS | M316: RECORDS
O318: TOTAL
... 894 more rows
